bitfinex/quotes_ETHUSD_20251107
["timestamp","ask_amount","ask_price","bid_price","bid_amount"]
[1762494138113,0.4806,3365.9,3365.8,2.97099293]
[1762494138334,0.4806,3365.9,3365.7,2.97109051]
[1762494138634,0.5009,3366.0,3365.7,2.97109051]
[1762494138635,0.4989,3365.8,3365.7,2.97109051]
[1762494138802,0.4806,3365.8,3365.6,0.001]
[1762494139125,0.5757,3365.7,3365.6,0.001]
[1762494139727,4.80656213,3365.7,3365.6,0.001]
[1762494139893,1.835412,3365.7,3365.6,0.001]
[1762494140522,4.80656213,3365.7,3365.6,0.001]
[1762494146238,1.835412,3365.7,3365.6,0.001]
[1762494146580,1.336512,3365.7,3365.6,0.001]
[1762494146757,1.835412,3365.7,3365.6,0.001]
[1762494147054,1.259712,3365.7,3365.6,0.001]
[1762494147454,1.740312,3365.7,3365.6,0.001]
[1762494148817,1.259712,3365.7,3365.6,0.001]
[1762494149358,1.740312,3365.7,3365.6,0.001]
[1762494151037,0.002,3366.0,3365.6,0.498]
[1762494151239,0.002,3366.0,3365.7,2.97113835]
[1762494151835,0.002,3366.0,3365.9,0.497]
[1762494152150,0.15,3366.0,3365.9,0.497]
[1762494152350,0.6306,3366.0,3365.6,0.001]
[1762494152548,0.6306,3366.0,3365.6,2.97221199]
[1762494152758,0.6306,3366.0,3365.6,0.001]
[1762494153263,1.1295,3366.0,3365.6,0.001]
[1762494153426,1.1295,3366.0,3365.6,2.97222938]
[1762494154127,0.002,3365.7,3365.6,2.97222938]
[1762494154530,0.4826,3365.7,3365.6,0.001]
[1762494154727,1.1295,3365.7,3365.6,0.001]
[1762494155328,0.6306,3365.7,3365.6,0.001]
[1762494155733,0.15,3365.7,3365.6,2.97223841]
[1762494155933,0.6306,3365.7,3365.6,0.001]
[1762494157904,4.10065013,3365.7,3365.6,0.001]
[1762494158057,5.36036213,3365.7,3365.6,0.001]
[1762494168391,5.32099344,3365.7,3365.6,0.001]
[1762494169710,5.72649744,3365.7,3365.6,0.001]
[1762494170085,5.21036213,3365.7,3365.6,0.001]
[1762494172311,5.21236213,3365.7,3365.6,0.001]
[1762494178113,5.21236213,3365.7,3365.3,0.001]
[1762494178114,2.97141498,3365.4,3365.3,0.001]
[1762494178313,3.3772722,3365.0,3364.9,0.001]
[1762494178500,3.37753716,3364.7,3364.6,0.001]
[1762494178708,5.09454916,3364.7,3364.6,0.001]
[1762494178911,5.55174916,3364.7,3364.6,0.001]
[1762494180213,5.92225078,3364.7,3364.6,0.001]
[1762494180834,4.6373375,3364.6,3364.5,0.001]
[1762494181157,4.63760252,3364.3,3363.0,0.1781]
[1762494181367,5.09410252,3364.3,3363.0,0.1781]
[1762494181567,5.55130252,3364.3,3363.0,0.1781]
[1762494182062,5.55130252,3364.3,3362.8,0.001]
[1762494182215,5.92180414,3364.3,3362.8,0.001]
[1762494182510,2.9726516,3364.0,3362.8,0.001]
[1762494182713,4.6113636,3364.0,3362.8,0.001]
[1762494182911,5.0685636,3364.0,3362.8,0.001]
[1762494185657,9.21466626,3364.0,3362.8,0.495]
[1762494186525,9.21466626,3364.0,3362.8,0.001]
[1762494186969,1.259712,3364.0,3363.9,0.4652]
[1762494187250,4.6917636,3364.0,3363.9,0.001]
[1762494189249,1.259712,3364.0,3363.9,0.4652]
[1762494189449,1.259712,3364.0,3363.9,0.9592]
[1762494189651,1.259712,3364.0,3363.9,0.4652]
[1762494189855,4.2323636,3364.0,3363.9,0.4652]
[1762494190422,4.6917636,3364.0,3363.9,0.001]
[1762494190919,4.2323636,3364.0,3363.9,0.001]
[1762494191316,1.259712,3364.0,3363.9,0.001]
[1762494191950,4.2323636,3364.0,3363.9,0.001]
[1762494192153,4.7195636,3364.0,3363.9,0.001]
[1762494192459,4.2323636,3364.0,3363.9,0.001]
[1762494192630,1.259712,3364.0,3363.9,0.9501]
[1762494192836,1.259712,3364.0,3363.9,0.471]
[1762494193439,1.259712,3364.0,3363.9,0.9501]
[1762494193756,1.259712,3364.0,3363.9,1.34239514]
[1762494194222,1.259712,3364.0,3363.9,0.9501]
[1762494196226,1.259712,3364.0,3363.9,3.92283997]
[1762494196953,0.002,3364.2,3364.0,2.97260115]
[1762494197131,0.002,3364.2,3364.1,1.1336]
[1762494197321,0.002,3364.2,3364.1,1.54433035]
[1762494197521,0.15,3364.2,3364.1,4.51689359]
[1762494199124,0.002,3364.2,3364.1,4.51689359]
[1762494204936,0.002,3364.6,3364.5,2.97220983]
[1762494205132,0.002,3364.6,3364.5,4.03666135]
[1762494205336,0.002,3364.6,3364.5,4.51576135]
[1762494208390,0.002,3364.6,3364.5,1.06445152]
[1762494208547,0.002,3364.6,3364.5,0.47]
[1762494208748,0.002,3364.6,3364.5,3.44220983]
[1762494208973,0.002,3364.6,3364.5,3.92130983]
[1762494211444,0.002,3364.6,3364.3,2.97238496]
[1762494211743,0.002,3364.6,3364.2,2.97244048]
[1762494212080,0.002,3364.6,3364.2,3.45154048]
[1762494212248,0.002,3364.6,3364.2,2.97244048]
[1762494212659,0.002,3364.6,3364.1,3.15800319]
[1762494212845,0.002,3364.6,3364.2,2.97245866]
[1762494213050,0.463,3364.6,3364.2,2.97245866]
[1762494213401,0.463,3364.6,3364.1,0.001]
[1762494213964,0.463,3364.6,3364.1,2.97356173]
[1762494214581,0.002,3364.6,3364.5,0.47]
[1762494215909,0.002,3364.6,3364.5,3.92130983]
[1762494217072,1.259712,3364.5,3364.1,0.001]
[1762494217259,0.4872,3364.2,3364.1,0.001]
[1762494217582,3.45967488,3364.2,3364.1,0.001]
[1762494217782,5.18038688,3364.2,3364.1,0.001]
[1762494218501,6.36625361,3364.2,3364.1,0.001]
[1762494218873,5.18038688,3364.2,3364.1,0.001]
[1762494224577,5.18238688,3364.2,3364.1,0.001]
[1762494227101,4.72138688,3364.2,3364.1,0.001]
[1762494227617,5.21668688,3364.2,3364.1,0.001]
[1762494233830,1.748912,3364.2,3364.1,0.001]
[1762494234148,4.72138688,3364.2,3364.1,0.001]
[1762494235935,5.21668688,3364.2,3364.1,0.001]
[1762494241010,5.62219088,3364.2,3364.1,0.001]
[1762494241216,3.3781556,3364.0,3363.9,0.001]
[1762494241417,4.7004676,3364.0,3363.9,0.001]
[1762494241616,5.1957676,3364.0,3363.9,0.001]
[1762494242315,13.70127556,3364.0,3363.9,0.001]
[1762494245467,9.44852158,3364.0,3363.9,0.001]
[1762494247251,9.04301758,3364.0,3363.9,0.001]
[1762494254150,8.48511758,3364.0,3363.9,0.001]
[1762494254446,4.2323636,3364.0,3363.9,0.9506]
[1762494254652,4.2323636,3364.0,3363.9,0.4974]
[1762494255985,8.48511758,3364.0,3363.9,0.001]
[1762494260163,7.70230558,3364.0,3363.9,0.001]
[1762494260374,8.19130558,3364.0,3363.9,0.001]
[1762494263993,9.85652158,3364.0,3363.9,0.001]
[1762494264189,14.10927556,3364.0,3363.9,0.001]
[1762494264713,3.37833234,3363.8,3363.5,0.001]
[1762494264858,4.71714434,3363.8,3363.5,0.001]
[1762494265166,5.69327259,3363.8,3363.5,0.001]
[1762494266278,5.20614434,3363.8,3363.5,0.001]
[1762494266479,5.69327259,3363.8,3363.5,0.001]
[1762494266883,9.45889832,3363.8,3363.5,0.001]
[1762494267491,4.31164034,3363.8,3363.5,0.001]
[1762494267988,4.80064034,3363.8,3363.5,0.001]
[1762494268189,5.20614434,3363.8,3363.5,0.001]
[1762494268388,5.69327259,3363.8,3363.5,0.001]
[1762494268593,5.20614434,3363.8,3363.5,0.001]
[1762494270156,4.23254034,3363.8,3363.7,0.4974]
[1762494271366,5.19844034,3363.8,3363.7,0.001]
[1762494271593,4.70944034,3363.8,3363.7,0.001]
[1762494272213,5.19844034,3363.8,3363.7,0.001]
[1762494273386,5.11494434,3363.8,3363.7,0.001]
[1762494273581,5.60394434,3363.8,3363.7,0.001]
[1762494274001,0.002,3364.1,3363.7,0.9506]
[1762494274188,4.23427859,3364.1,3364.0,0.4964]
[1762494279331,1.261712,3364.1,3364.0,0.4964]
[1762494279754,4.23427524,3364.1,3364.0,0.4964]
[1762494291322,4.6378676,3364.0,3363.9,0.001]
[1762494291510,4.7690676,3364.0,3363.9,0.001]
[1762494292110,4.88820758,3364.0,3363.9,0.001]
[1762494292565,4.75700758,3364.0,3363.9,0.001]
[1762494293175,5.23110758,3364.0,3363.9,0.001]
[1762494293473,5.68160758,3364.0,3363.9,0.001]
[1762494297475,5.23110758,3364.0,3363.9,0.001]
[1762494297784,5.68160758,3364.0,3363.9,0.001]
[1762494300790,6.04080897,3364.0,3363.9,0.001]
[1762494301000,5.68160758,3364.0,3363.9,0.001]
[1762494302482,6.08064231,3364.0,3363.9,0.001]
[1762494302997,5.68160758,3364.0,3363.9,0.001]
[1762494303551,4.6384863,3363.3,3363.2,0.001]
[1762494303780,9.25357543,3363.3,3363.2,0.001]
[1762494303985,9.70407543,3363.3,3363.2,0.001]
[1762494304151,9.82325375,3363.3,3363.2,0.001]
[1762494304960,4.35216062,3363.3,3363.2,0.4842]
[1762494305163,4.35216062,3363.3,3363.2,0.9441]
[1762494305573,4.35216062,3363.3,3363.2,0.4842]
[1762494305962,1.259712,3363.3,3363.2,0.9441]
[1762494306164,4.2329823,3363.3,3363.2,0.9441]
[1762494306353,3.45729714,3363.5,3363.2,0.9441]
[1762494306553,2.97309714,3363.5,3363.3,0.4599]
[1762494306754,4.23280914,3363.5,3363.4,0.4832]
[1762494307156,4.23280914,3363.5,3363.4,0.9431]
[1762494307776,4.23280914,3363.5,3363.4,0.4832]
[1762494309106,4.23280914,3363.5,3363.2,0.001]
[1762494309289,2.9732703,3363.3,3363.2,0.001]
[1762494309872,3.1577703,3363.3,3363.2,0.001]
[1762494310371,3.6318703,3363.3,3363.2,0.001]
[1762494310996,3.1577703,3363.3,3363.2,0.001]
[1762494312317,3.1577703,3363.3,3363.2,0.4549]
[1762494313198,3.1577703,3363.3,3363.2,0.001]
[1762494313668,4.4174823,3363.3,3363.2,0.4549]
[1762494313907,1.259712,3363.3,3363.2,0.9538]
[1762494314102,4.2329823,3363.3,3363.2,0.9538]
[1762494315097,1.259712,3363.3,3363.2,0.9538]
[1762494318120,2.97301344,3363.6,3363.2,1.3650885]
[1762494318319,2.97282834,3363.8,3363.7,0.4539]
[1762494318694,4.23254034,3363.8,3363.7,0.9528]
[1762494319013,2.9726809,3364.0,3363.7,0.9528]
[1762494319214,0.148,3363.7,3363.3,2.97325928]
[1762494319513,2.97274598,3363.9,3363.4,0.63589839]
[1762494319713,1.259712,3363.8,3363.4,1.13479839]
[1762494319920,0.002,3364.1,3363.8,0.4539]
[1762494320079,1.261712,3364.1,3364.0,0.4539]
[1762494320284,2.97456324,3364.1,3364.0,0.4539]
[1762494320511,4.23427524,3364.1,3364.0,0.4539]
[1762494322081,0.002,3364.1,3364.0,0.9528]
[1762494322720,2.97456324,3364.1,3364.0,0.9528]
[1762494324804,4.23427524,3364.1,3364.0,0.9528]
[1762494325116,1.261712,3364.1,3364.0,0.9528]
[1762494328523,0.002,3364.1,3364.0,0.9528]
[1762494329502,0.002,3364.1,3364.0,1.64263598]
[1762494329818,0.15,3364.1,3364.0,3.9254516]
[1762494330919,0.002,3364.1,3364.0,3.9254516]
[1762494331322,0.148,3364.4,3364.1,3.42646324]
[1762494331485,0.002,3364.5,3364.3,0.6019]
[1762494331690,0.002,3364.5,3364.1,0.1813]
[1762494331918,0.4623,3364.2,3363.7,0.6802]
[1762494332086,0.4947,3364.5,3363.7,0.6802]
[1762494332087,0.002,3364.5,3363.7,0.6802]
[1762494332429,0.002,3364.5,3363.8,0.4989]
[1762494332732,1.261712,3364.5,3364.4,0.4539]
[1762494334118,4.23392183,3364.5,3364.4,0.4539]
[1762494334306,4.23392183,3364.5,3363.5,2.97308876]
[1762494334307,1.259712,3364.4,3363.2,0.001]
[1762494334633,2.97290548,3363.8,3363.2,0.001]
[1762494334827,2.97229818,3364.4,3364.3,0.4539]
[1762494335189,1.259712,3364.4,3364.3,0.4539]
[1762494335786,1.259712,3364.3,3363.1,3.15469258]
[1762494335990,1.259712,3364.3,3363.4,0.4999]
[1762494335991,2.97270747,3364.0,3363.4,0.4999]
[1762494336215,2.97281726,3363.9,3363.4,0.66388494]
[1762494336491,1.259712,3364.1,3363.5,0.4989]
[1762494336733,1.259712,3363.9,3363.5,0.4989]
[1762494336898,1.261712,3364.6,3364.0,0.4539]
[1762494337103,2.97256324,3364.1,3364.0,0.4539]
[1762494337334,4.23227524,3364.1,3364.0,0.4539]
[1762494337539,1.259712,3364.1,3364.0,0.4539]
[1762494337733,1.259712,3364.1,3363.2,0.001]
[1762494337734,2.97362395,3362.9,3362.8,0.001]
[1762494337893,5.28513995,3362.9,3362.8,0.001]
[1762494338099,6.18211705,3362.9,3362.8,0.001]
[1762494338517,5.89703745,3362.9,3362.8,0.001]
[1762494339022,3.37948169,3362.5,3362.3,0.001]
[1762494339223,5.09839369,3362.5,3362.3,0.001]
[1762494339422,5.99677079,3362.5,3362.3,0.001]
[1762494339735,5.18698969,3362.5,3362.3,0.001]
[1762494339936,4.69288969,3362.5,3362.3,0.001]
[1762494340247,5.18698969,3362.5,3362.3,0.001]
[1762494342050,5.59249369,3362.5,3362.3,0.001]
[1762494342209,5.97704108,3362.5,3362.3,0.001]
[1762494342408,4.69288969,3362.5,3362.3,0.001]
[1762494343049,5.31028115,3362.5,3362.3,0.001]
[1762494343347,4.69048969,3362.5,3362.3,0.001]
[1762494344212,5.59419369,3362.5,3362.3,0.001]
[1762494344407,5.18868969,3362.5,3362.3,0.001]
[1762494346016,5.59419369,3362.5,3362.3,0.001]
[1762494348531,5.64419369,3362.5,3362.3,0.001]
[1762494351333,5.59419369,3362.5,3362.3,0.001]
[1762494353122,5.71340611,3362.5,3362.3,0.001]
[1762494355272,5.09599369,3362.5,3362.3,0.001]
[1762494355766,0.46652207,3362.5,3362.4,0.4721]
[1762494355950,3.43077769,3362.5,3362.4,0.001]
[1762494356130,6.06069587,3362.5,3362.4,0.001]
[1762494358066,6.1799058,3362.5,3362.4,0.001]
[1762494360568,5.2249058,3362.5,3362.4,0.4721]
[1762494360774,1.259712,3362.5,3362.4,0.4721]
[1762494361077,4.23368969,3362.5,3362.4,0.4721]
[1762494361581,4.69048969,3362.5,3362.4,0.001]
[1762494361736,5.59419369,3362.5,3362.4,0.001]
[1762494363358,4.23368969,3362.5,3362.4,0.4721]
[1762494363561,1.259712,3362.5,3362.4,0.9659]
[1762494363769,4.23368969,3362.5,3362.4,0.9659]
[1762494364332,1.259712,3362.5,3362.4,0.9659]
[1762494364537,0.002,3362.6,3362.4,0.9659]
[1762494364781,2.97588925,3362.6,3362.5,0.4711]
[1762494364936,4.23560125,3362.6,3362.5,0.4711]
[1762494367860,1.261712,3362.6,3362.5,0.9649]
[1762494368057,4.23560125,3362.6,3362.5,0.9649]
[1762494368488,4.23560125,3362.6,3362.5,0.4711]
[1762494368689,1.261712,3362.6,3362.5,0.4711]
[1762494368906,4.23560125,3362.6,3362.5,0.9649]
[1762494369601,4.23560125,3362.6,3362.5,0.4711]
[1762494369966,4.23560125,3362.6,3362.5,0.9649]
[1762494370181,4.23560125,3362.6,3362.5,0.4711]
[1762494370401,1.261712,3362.6,3362.5,0.4711]
[1762494370593,4.23560125,3362.6,3362.5,0.4711]
[1762494370793,4.23560125,3362.6,3362.5,0.9474]
[1762494371108,1.261712,3362.6,3362.5,0.9474]
[1762494371722,0.15,3362.6,3362.5,3.92137769]
[1762494371871,0.15,3362.6,3362.5,4.61122266]
[1762494373009,3.12388925,3362.6,3362.5,0.4711]
[1762494373207,2.97397769,3362.5,3362.4,0.001]
[1762494373417,2.97592629,3362.6,3362.5,0.4935]
[1762494373973,4.23368969,3362.5,3362.4,0.001]
[1762494374583,4.71608969,3362.5,3362.4,0.001]
[1762494374783,5.57899369,3362.5,3362.4,0.001]
[1762494375023,5.12159369,3362.5,3362.4,0.001]
[1762494375176,4.23368969,3362.5,3362.4,0.4945]
[1762494375380,1.259712,3362.5,3362.4,0.4945]
[1762494375818,4.23368969,3362.5,3362.4,0.4945]
[1762494376301,4.23368969,3362.5,3362.4,0.9708]
[1762494376928,4.23368969,3362.5,3362.4,0.4945]
[1762494377425,1.259712,3362.5,3362.4,0.4945]
[1762494377625,4.23368969,3362.5,3362.4,0.4945]
[1762494378933,4.23368969,3362.5,3362.4,0.001]
[1762494379414,4.23368969,3362.5,3362.4,0.4945]
[1762494381926,4.23368969,3362.5,3362.4,0.001]
[1762494381927,4.71608969,3362.5,3362.4,0.001]
[1762494382946,9.3767345,3362.5,3362.4,0.001]
[1762494383229,9.8341345,3362.5,3362.4,0.001]
[1762494383532,9.4286305,3362.5,3362.4,0.001]
[1762494383731,8.9712305,3362.5,3362.4,0.001]
[1762494384236,4.23368969,3362.5,3362.4,0.4945]
[1762494386097,4.71608969,3362.5,3362.4,0.001]
[1762494386993,5.17348969,3362.5,3362.4,0.001]
[1762494388698,5.57899369,3362.5,3362.4,0.001]
[1762494394580,6.00045775,3362.5,3362.4,0.001]
[1762494397332,5.17348969,3362.5,3362.4,0.001]
[1762494398967,8.4888305,3362.5,3362.4,0.001]
[1762494399481,9.4421305,3362.5,3362.4,0.001]
[1762494400773,8.4888305,3362.5,3362.4,0.001]
[1762494400974,9.4612305,3362.5,3362.4,0.001]
[1762494402112,9.4612305,3362.5,3362.4,0.478]
[1762494402113,8.4888305,3362.5,3362.4,0.478]
[1762494402577,8.9659305,3362.5,3362.4,0.001]
[1762494404274,8.4888305,3362.5,3362.4,0.001]
[1762494404481,8.38282774,3362.5,3362.4,0.001]
[1762494405195,9.2813918,3362.5,3362.4,0.001]
[1762494406072,10.1821958,3362.5,3362.4,0.001]
[1762494406491,10.30140182,3362.5,3362.4,0.001]
[1762494406690,9.87993776,3362.5,3362.4,0.001]
[1762494407002,4.82999571,3362.5,3362.4,0.001]
[1762494407308,4.71078969,3362.5,3362.4,0.001]
[1762494407474,5.20608969,3362.5,3362.4,0.001]
[1762494409065,4.71078969,3362.5,3362.4,0.001]
[1762494409268,5.11629369,3362.5,3362.4,0.001]
[1762494409505,5.61159369,3362.5,3362.4,0.001]
[1762494420559,1.259712,3362.5,3362.4,1.0774]
[1762494420717,0.002,3362.6,3362.4,1.0774]
[1762494420912,0.002,3362.6,3362.5,0.477]
[1762494421157,3.45107769,3362.5,3362.4,0.001]
[1762494421315,8.24351574,3362.5,3362.4,0.001]
[1762494421515,9.50322774,3362.5,3362.4,0.001]
[1762494421753,9.00792774,3362.5,3362.4,0.001]
[1762494421953,4.38168969,3362.5,3362.4,0.478]
[1762494422468,5.35408969,3362.5,3362.4,0.001]
[1762494422614,4.38168969,3362.5,3362.4,0.001]
[1762494423650,4.85878969,3362.5,3362.4,0.001]
[1762494424052,4.38168969,3362.5,3362.4,0.478]
[1762494424779,4.38168969,3362.5,3362.4,0.9536]
[1762494425779,4.23368969,3362.5,3362.4,0.9536]
[1762494425986,0.002,3362.6,3362.4,0.9536]
[1762494426281,0.002,3362.6,3362.5,0.9526]
[1762494426870,0.002,3362.6,3362.5,1.34557514]
[1762494430270,2.97588925,3362.6,3362.5,0.9526]
[1762494430663,0.002,3362.6,3362.5,0.9526]
[1762494431666,0.15,3362.6,3362.5,0.9526]
[1762494431978,0.002,3363.3,3362.7,2.97371949]
[1762494432153,0.002,3364.2,3363.2,0.5963]
[1762494432380,0.148,3363.7,3363.4,2.97311368]
[1762494432613,0.148,3363.7,3363.3,3.47159363]
[1762494432793,0.148,3363.7,3363.6,0.4725]
[1762494433198,0.148,3363.7,3363.6,0.9709]
[1762494435815,5.09043805,3363.7,3362.2,0.001]
[1762494435987,2.97378703,3362.8,3362.2,0.001]
[1762494436186,2.97396441,3362.6,3362.2,0.0811]
[1762494436385,1.259712,3362.9,3362.2,0.0811]
[1762494436386,2.97371238,3362.8,3362.2,0.0811]
[1762494436709,2.97397769,3362.5,3362.2,0.001]
[1762494437112,3.43067769,3362.5,3362.2,0.001]
[1762494437409,5.95682746,3362.5,3362.2,0.001]
[1762494437612,5.17498969,3362.5,3362.2,0.001]
[1762494438433,5.17498969,3362.5,3361.7,0.001]
[1762494438434,6.04749413,3362.5,3361.7,0.001]
[1762494438581,6.04749413,3362.5,3359.6,0.11918755]
[1762494438582,0.405504,3361.7,3360.4,0.0801]
[1762494438777,4.14913805,3360.9,3360.4,0.0801]
[1762494439200,2.97552272,3360.8,3360.4,0.39372063]
[1762494439399,4.14913805,3360.9,3360.4,0.0801]
[1762494439606,7.12455084,3360.9,3360.7,0.0801]
[1762494439810,1.259712,3361.1,3360.8,0.0801]
[1762494440017,4.23493999,3361.1,3360.8,0.0801]
[1762494440297,0.6668,3361.8,3361.0,0.0801]
[1762494440621,2.9751886,3361.2,3360.5,3.05583738]
[1762494440828,1.259712,3361.2,3360.6,0.31358711]
[1762494441129,2.9751667,3361.2,3360.6,0.31358711]
[1762494441289,2.97511499,3361.3,3360.6,0.31358711]
[1762494441490,0.1822,3361.8,3360.7,0.4250534]
[1762494441693,0.1822,3361.8,3360.4,0.0801]
[1762494441694,2.97453403,3361.9,3361.7,0.0801]
[1762494441927,1.259712,3361.8,3361.2,2.97511525]
[1762494442223,2.97460527,3361.8,3361.2,0.59504093]
[1762494442428,2.97460527,3361.8,3361.2,0.0801]
[1762494442628,1.259712,3361.7,3361.2,0.0801]
[1762494442792,1.259712,3361.8,3361.2,3.05521808]
[1762494442996,1.259712,3361.8,3361.7,0.0801]
[1762494443217,2.9745018,3362.0,3361.7,0.0801]
[1762494443418,1.259712,3361.8,3361.7,0.0801]
[1762494444539,1.259712,3361.8,3361.7,0.1602]
[1762494444699,0.002,3362.6,3361.7,0.47370536]
[1762494444891,1.259712,3362.4,3362.0,0.0801]
[1762494445095,2.97409125,3362.4,3362.0,0.0801]
[1762494445547,2.97416339,3362.3,3362.0,0.0801]
[1762494445948,0.002,3362.6,3362.1,0.0801]
[1762494446109,0.002,3362.6,3362.5,0.0801]
[1762494446826,0.002,3362.6,3362.5,0.1602]
[1762494447024,0.002,3362.6,3362.5,0.0801]
[1762494454341,0.002,3362.6,3361.7,0.0801]
[1762494454342,0.4587,3362.6,3361.7,0.0801]
[1762494454544,2.97405966,3362.5,3361.8,2.97454663]
[1762494454711,2.97407266,3362.4,3361.8,3.57748792]
[1762494454926,0.002,3362.6,3362.0,2.97440504]
[1762494455123,0.002,3362.6,3361.3,0.405504]
[1762494455322,0.002,3362.6,3358.5,0.09999999]
[1762494455323,0.4846,3362.5,3361.1,2.97513354]
[1762494455551,2.97424305,3362.2,3360.4,0.0811]
[1762494455861,0.4567,3361.2,3360.4,0.0811]
[1762494456267,2.97535942,3361.0,3360.4,0.0811]
[1762494456437,2.97539349,3360.9,3360.4,0.0811]
[1762494457341,4.09889349,3360.9,3360.4,0.0811]
[1762494457663,4.87400549,3360.9,3360.4,0.0811]
[1762494458048,5.35860549,3360.9,3360.4,0.001]
[1762494458641,4.87400549,3360.9,3360.4,0.001]
[1762494459631,5.35910549,3360.9,3360.4,0.001]
[1762494460027,1.259712,3360.9,3360.4,0.001]
[1762494460260,1.259712,3360.9,3360.8,0.0811]
[1762494461057,0.1972,3361.8,3360.8,0.0811]
[1762494461264,2.97523639,3361.1,3360.8,0.0811]
[1762494461425,1.259712,3361.1,3360.8,0.0811]
[1762494462053,2.97476381,3361.7,3360.8,0.001]
[1762494462256,2.97533762,3361.0,3360.8,0.001]
[1762494462669,0.4627,3360.9,3360.8,0.001]
[1762494462874,3.43809349,3360.9,3360.8,0.001]
[1762494463063,3.91199349,3360.9,3360.8,0.001]
[1762494463703,5.17170549,3360.9,3360.8,0.001]
[1762494466758,10.81915143,3360.9,3360.8,0.001]
[1762494469599,1.259712,3360.9,3360.8,0.0811]
[1762494469927,0.4739,3361.5,3360.8,0.0811]
[1762494470072,0.148,3360.9,3360.8,0.0811]
[1762494471385,0.148,3360.9,3360.8,3.45035442]
[1762494471707,0.148,3360.9,3360.8,0.4748724]
[1762494471912,0.148,3360.9,3360.8,0.001]
[1762494471913,3.43809349,3360.9,3360.8,0.001]
[1762494472497,2.97539349,3360.9,3360.8,0.001]
[1762494473009,1.259712,3361.0,3360.8,0.001]
[1762494473710,2.97539349,3360.9,3360.8,0.001]
[1762494473899,3.43809349,3360.9,3360.8,0.001]
[1762494474218,5.17170549,3360.9,3360.8,0.001]
[1762494474715,4.69780549,3360.9,3360.8,0.001]
[1762494475305,4.23510549,3360.9,3360.8,0.001]
[1762494475704,1.259712,3360.9,3360.8,0.001]
[1762494475910,1.259712,3360.9,3360.8,0.0811]
[1762494476232,4.23510549,3360.9,3360.8,0.001]
[1762494476434,4.69780549,3360.9,3360.8,0.001]
[1762494476589,1.259712,3360.9,3360.8,0.001]
[1762494477122,1.259712,3360.9,3360.8,0.0811]
[1762494477321,4.23510549,3360.9,3360.8,0.001]
[1762494479100,2.97539349,3360.9,3360.8,0.001]
[1762494480125,3.91199349,3360.9,3360.8,0.001]
[1762494482205,2.97539085,3361.0,3360.8,0.0811]
[1762494482422,2.97529531,3361.1,3360.8,0.001]
[1762494482620,2.97539349,3360.9,3360.8,0.001]
[1762494482798,0.4739,3361.4,3360.8,0.001]
[1762494482997,2.97539349,3360.9,3360.8,0.001]
[1762494483896,3.43809349,3360.9,3360.8,0.001]
[1762494484392,0.4627,3360.9,3360.8,0.001]
[1762494484730,2.97539349,3360.9,3360.8,0.001]
[1762494484934,3.43809349,3360.9,3360.8,0.001]
[1762494485144,3.91199349,3360.9,3360.8,0.001]
[1762494485718,3.43809349,3360.9,3360.8,0.001]
[1762494487216,4.69780549,3360.9,3360.8,0.001]
[1762494487613,5.17170549,3360.9,3360.8,0.001]
[1762494489035,1.259712,3360.9,3360.8,0.001]
[1762494489227,4.23510549,3360.9,3360.8,0.001]
[1762494489429,1.259712,3360.9,3360.8,0.001]
[1762494489609,4.23510549,3360.9,3360.8,0.001]
[1762494489814,1.259712,3360.9,3360.8,0.001]
[1762494490016,4.23510549,3360.9,3360.8,0.001]
[1762494491126,4.72170549,3360.9,3360.8,0.001]
[1762494491805,5.19280549,3360.9,3360.8,0.001]
[1762494492013,1.746312,3360.9,3360.8,0.001]
[1762494492227,1.259712,3360.9,3360.8,0.001]
[1762494492763,2.97523173,3361.1,3360.8,0.0811]
[1762494492912,1.259712,3361.0,3360.9,0.0801]
[1762494493106,1.259712,3361.0,3360.8,0.001]
[1762494493424,4.23481234,3361.3,3360.9,0.0801]
[1762494493624,4.23481234,3361.3,3361.0,0.0801]
[1762494493830,1.259712,3361.4,3361.2,0.0801]
[1762494494012,0.002,3361.7,3361.2,0.0801]
[1762494494345,1.259712,3361.4,3361.2,0.0801]
[1762494494547,0.002,3361.7,3361.2,0.0801]
[1762494494749,0.002,3361.7,3361.6,0.0801]
[1762494494949,0.002,3361.7,3360.8,0.149]
[1762494494950,0.148,3361.4,3360.8,0.149]
[1762494495248,0.148,3361.4,3360.8,3.12447692]
[1762494495455,2.97510906,3361.3,3360.8,0.001]
[1762494495640,0.148,3361.0,3360.8,0.001]
[1762494496016,0.148,3361.0,3360.9,0.0801]
[1762494496430,0.148,3361.0,3360.9,0.39377204]
[1762494496616,0.002,3361.7,3361.2,2.97506653]
[1762494497052,0.002,3361.7,3361.2,2.97512329]
[1762494497850,0.002,3361.7,3361.6,0.0801]
[1762494498657,0.002,3361.7,3361.2,2.97509304]
[1762494498829,0.002,3361.7,3361.4,2.97488362]
[1762494499029,0.002,3361.7,3361.6,0.0801]
[1762494500283,0.002,3361.7,3361.6,3.13497391]
[1762494501353,0.002,3361.7,3361.6,3.05487391]
[1762494501946,0.002,3361.7,3361.6,0.0801]
[1762494502149,0.002,3361.7,3361.6,0.45391014]
[1762494502447,0.002,3361.7,3361.6,3.05487391]
[1762494502652,0.002,3361.7,3361.6,3.13497391]
[1762494503759,0.002,3361.7,3361.6,3.16472164]
[1762494503959,0.002,3361.7,3361.6,3.13497391]